bitfinex-derivatives/quotes_SOLF0:USTF0_20260308
["timestamp","ask_amount","ask_price","bid_price","bid_amount"]
[1772972124170,4.07941508,82.083,82.033,10.971]
[1772972124567,4.07941508,82.083,82.016,0.15609514]
[1772972124869,4.07941508,82.083,82.033,10.971]
[1772972125572,4.07941508,82.083,82.031,0.24471111]
[1772972126165,4.07941508,82.13,82.031,0.24471111]
[1772972126367,4.07941508,82.128,82.031,0.24471111]
[1772972126566,4.07941508,82.102,82.031,0.24471111]
[1772972127470,4.07941508,82.099,82.032,10.971]
[1772972127876,4.07941508,82.099,82.011,0.25698165]
[1772972128071,4.07941508,82.078,81.995,0.25698165]
[1772972128671,4.07941508,82.07,82.011,10.974]
[1772972128871,4.07941508,82.114,82.012,0.27919229]
[1772972129069,4.07941508,82.074,82.012,0.27919229]
[1772972130472,4.07941508,82.074,82.022,10.973]
[1772972132576,4.00151118,82.072,82.013,10.974]
[1772972133668,4.00151118,82.068,81.961,0.30953793]
[1772972133871,4.00151118,82.066,81.961,0.30953793]
[1772972134068,4.00151118,82.053,81.994,10.976]
[1772972134270,4.00151118,82.053,81.98,0.30953793]
[1772972135170,4.00151118,82.042,81.98,11.28753793]
[1772972136472,4.00151118,82.042,81.99,10.977]
[1772972136969,10.968,82.057,81.998,10.976]
[1772972137181,4.00151118,82.058,81.998,0.29377815]
[1772972138782,4.00151118,82.058,82.014,10.974]
[1772972142990,4.00151118,82.056,82.004,10.975]
[1772972145386,4.04105982,82.053,81.955,0.09694529]
[1772972145588,4.04105982,82.051,81.955,0.09694529]
[1772972145792,4.04105982,82.048,81.955,0.09694529]
[1772972146089,4.04105982,82.006,81.908,0.09694529]
[1772972146489,21.89848885,82.056,81.908,0.09694529]
[1772972146490,4.04105982,81.996,81.908,0.09694529]
[1772972147090,4.09670626,81.977,81.908,0.09694529]
[1772972147392,4.09670626,81.977,81.909,10.988]
[1772972147592,4.09670626,81.974,81.876,12.2]
[1772972147887,1.29593431,81.972,81.858,4.04858233]
[1772972148089,464.1547691,81.999,81.858,4.04858233]
[1772972148090,1.29593431,81.97,81.858,4.04858233]
[1772972148288,1.29593431,81.939,81.839,204.13293534]
[1772972148490,1.29593431,81.939,81.821,4.04858233]
[1772972148491,1.29593431,81.937,81.821,4.04858233]
[1772972148690,1.29593431,81.937,81.803,4.04858233]
[1772972148691,1.29593431,81.88,81.803,4.04858233]
[1772972149387,1.23520396,81.874,81.803,4.04858233]
[1772972149588,1.23520396,81.929,81.842,15.04558233]
[1772972149795,1.23520396,81.915,81.789,4.04858233]
[1772972150191,1.23520396,81.915,81.814,4.04858233]
[1772972150490,1.23520396,81.907,81.814,4.04858233]
[1772972150691,1.23520396,81.907,81.841,4.04858233]
[1772972150883,1.23520396,81.907,81.763,2.12647647]
[1772972150884,1.23520396,81.907,81.788,4.04858233]
[1772972151084,1.07977356,81.904,81.818,4.04858233]
[1772972151693,1.07977356,81.902,81.818,4.04858233]
[1772972152293,1.07977356,81.898,81.818,4.04858233]
[1772972152491,1.07977356,81.898,81.764,296.0]
[1772972152796,1.07977356,81.831,81.714,4.04858233]
[1772972153094,1.07977356,81.831,81.693,2.12772462]
[1772972153291,171.051,81.851,81.693,2.12772462]
[1772972153488,9.63547554,81.85,81.672,11.25795308]
[1772972153687,9.63547554,81.85,81.692,11.25795308]
[1772972153688,11.004,81.787,81.692,11.25795308]
[1772972153886,12.13561392,81.85,81.692,11.25795308]
[1772972153887,482.44738095,81.793,81.692,11.25795308]
[1772972154394,170.945,81.902,81.695,11.25795308]
[1772972154583,170.91,81.919,81.695,11.25795308]
[1772972154784,170.919,81.914,81.695,11.25795308]
[1772972154996,10.997,81.845,81.724,11.0785792]
[1772972155294,124.0,81.9,81.724,6.2385792]
[1772972155689,170.955,81.897,81.653,2.12871378]
[1772972155897,11.96967291,81.907,81.653,2.12871378]
[1772972155898,171.007,81.872,81.653,2.12871378]
[1772972156090,170.971,81.89,81.653,2.12871378]
[1772972156290,124.0,81.87,81.653,2.12871378]
[1772972156591,11.003,81.796,81.653,2.12871378]
[1772972156792,469.33568403,81.807,81.653,2.12871378]
[1772972157291,469.33568403,81.807,81.654,8.73611464]
[1772972157697,11.004,81.786,81.674,8.73611464]
[1772972157893,469.33568403,81.807,81.674,8.73611464]
[1772972158489,469.33568403,81.807,81.706,8.73611464]
[1772972159094,11.004,81.789,81.706,8.73611464]
[1772972160392,469.33568403,81.807,81.706,8.73611464]
[1772972160701,469.33568403,81.807,81.681,8.71256526]
[1772972160892,469.33568403,81.807,81.66,8.6801163]
[1772972161499,11.011,81.735,81.66,8.6801163]
[1772972161699,11.011,81.735,81.64,8.6801163]
[1772972161896,480.00198725,81.764,81.673,11.02]
[1772972162199,480.00198725,81.764,81.644,8.6801163]
[1772972162591,11.008,81.759,81.659,8.6801163]
[1772972162796,480.00198725,81.764,81.659,8.6801163]
[1772972163197,11.01,81.747,81.66,8.72787555]
[1772972163402,480.00198725,81.764,81.66,8.72787555]
[1772972163697,480.00198725,81.764,81.661,8.72787555]
[1772972163891,480.00198725,81.764,81.676,19.74687555]
[1772972164092,469.33568403,81.807,81.677,8.72787555]
[1772972164495,11.002,81.806,81.712,8.72787555]
[1772972164894,11.002,81.806,81.716,8.74845595]
[1772972165296,469.33568403,81.807,81.716,8.74845595]
[1772972165597,480.33768403,81.807,81.716,8.74845595]
[1772972165795,469.33568403,81.807,81.716,8.74845595]
[1772972166302,469.33568403,81.807,81.659,296.0]
[1772972166303,11.009,81.754,81.671,8.74845595]
[1772972166802,11.01,81.742,81.671,8.74845595]
[1772972167000,171.186,81.786,81.621,8.77152486]
[1772972167204,171.311,81.727,81.562,8.77152486]
[1772972167499,780.26650516,81.727,81.504,8.77152486]
[1772972167703,171.388,81.69,81.504,8.77152486]
[1772972167901,22.042,81.665,81.525,8.77152486]
[1772972168104,171.274,81.744,81.525,8.77152486]
[1772972168302,11.019,81.681,81.586,8.77152486]
[1772972168504,171.24,81.761,81.586,8.77152486]
[1772972169302,22.025,81.728,81.586,8.77152486]
[1772972169511,171.204,81.778,81.586,8.77152486]
[1772972169804,171.274,81.745,81.586,8.77152486]
[1772972170004,22.025,81.73,81.586,8.77152486]
[1772972170506,22.015,81.766,81.586,8.77152486]
[1772972170701,195.58,81.803,81.62,8.73013265]
[1772972170905,301.82342063,81.727,81.62,8.73013265]
[1772972171408,22.005,81.801,81.641,8.74615453]
[1772972171708,195.58,81.803,81.641,8.74615453]
[1772972171898,11.013,81.726,81.641,8.74615453]
[1772972172103,22.007,81.796,81.641,8.74615453]
[1772972172301,195.58,81.803,81.641,8.74615453]
[1772972172507,171.091,81.832,81.665,8.74615453]
[1772972172704,21.997,81.831,81.665,8.74615453]
[1772972173108,21.997,81.831,81.668,8.73445517]
[1772972173908,21.997,81.831,81.681,8.73445517]
[1772972174502,11.009,81.754,81.681,8.73445517]
[1772972174709,171.128,81.814,81.659,8.73445517]
[1772972174910,171.094,81.831,81.659,8.73445517]
[1772972175113,11.012,81.729,81.659,8.73445517]
[1772972175411,22.006,81.799,81.659,8.73445517]
[1772972176008,171.128,81.815,81.659,8.73445517]
[1772972176709,171.156,81.801,81.633,8.67689036]
[1772972177205,171.156,81.801,81.61,325.48980877]
[1772972177206,11.013,81.723,81.635,8.68475392]
[1772972177412,22.008,81.789,81.635,8.68475392]
[1772972177607,22.008,81.789,81.651,8.68475392]
[1772972178210,11.011,81.738,81.652,8.68475392]
[1772972178511,22.008,81.789,81.652,8.68475392]
[1772972178707,171.015,81.868,81.679,8.68475392]
[1772972179013,219.839,81.886,81.679,8.68475392]
[1772972179014,170.979,81.886,81.679,8.68475392]
[1772972179209,11.006,81.776,81.696,8.68790277]
[1772972179611,21.991,81.856,81.696,8.68790277]
[1772972180102,21.999,81.824,81.678,8.68790277]
[1772972181411,11.007,81.77,81.69,62.0]
[1772972181610,21.999,81.824,81.691,8.68380744]
[1772972181810,11.006,81.773,81.691,8.68380744]
[1772972182508,11.006,81.773,81.692,8.68380744]
[1772972183010,21.991,81.856,81.696,8.67515258]
[1772972183713,21.991,81.856,81.718,8.67515258]
[1772972184409,10.45335283,81.933,81.718,8.67515258]
[1772972184410,170.934,81.907,81.718,8.67515258]
[1772972185209,170.954,81.898,81.745,8.68337771]
[1772972185414,170.958,81.896,81.745,8.68337771]
[1772972185709,170.942,81.903,81.745,8.68337771]
[1772972186212,170.926,81.911,81.745,8.68337771]
[1772972186614,170.926,81.911,81.691,296.0]
[1772972186615,21.984,81.879,81.747,8.68337771]
[1772972187018,10.996,81.847,81.772,8.66846905]
[1772972187216,124.0,81.93,81.772,8.66846905]
[1772972187217,170.907,81.92,81.772,8.66846905]
[1772972187418,124.0,81.93,81.772,8.66846905]
[1772972187614,170.915,81.916,81.772,8.66846905]
[1772972187918,170.931,81.909,81.772,8.66846905]
[1772972188517,21.982,81.888,81.772,8.66846905]
[1772972188713,10.45335283,81.957,81.772,8.66846905]
[1772972189018,170.824,81.96,81.785,8.66719631]
[1772972189217,170.815,81.964,81.785,8.66719631]
[1772972189517,170.791,81.976,81.785,8.66719631]
[1772972189815,10.991,81.883,81.814,8.66719631]
[1772972190014,170.879,81.934,81.741,8.66719631]
[1772972190212,170.931,81.909,81.741,8.66719631]
[1772972190412,21.984,81.88,81.743,8.66719631]
[1772972190613,170.938,81.905,81.743,8.66719631]
[1772972190817,10.02988088,81.904,81.743,8.66719631]
[1772972191316,10.02988088,81.903,81.743,8.66719631]
[1772972191514,21.986,81.873,81.745,8.67669158]
[1772972191716,10.45335283,81.905,81.745,8.67669158]
[1772972191917,10.45335283,81.909,81.745,8.67669158]
[1772972192118,20.50936635,81.908,81.745,8.67669158]
[1772972192317,10.45335283,81.899,81.745,8.67669158]
[1772972192520,10.05601352,81.898,81.745,8.67669158]
[1772972192812,21.986,81.872,81.747,8.67669158]
[1772972193012,10.45335283,81.906,81.747,8.67669158]
[1772972193213,21.987,81.868,81.747,8.67669158]
[1772972194017,10.45335283,81.9,81.747,8.67669158]
[1772972194323,10.45335283,81.894,81.751,8.68038308]
[1772972194516,9.89940409,81.893,81.751,8.68038308]
[1772972194715,21.988,81.866,81.751,8.68038308]
[1772972194914,11.002,81.808,81.751,8.68038308]
[1772972196320,11.0,81.818,81.751,8.68038308]
[1772972196919,11.0,81.818,81.752,8.67991969]
[1772972197114,11.002,81.808,81.752,8.67991969]
[1772972197316,21.988,81.866,81.752,8.67991969]
[1772972197620,9.92535889,81.865,81.752,8.67991969]
[1772972198116,9.92544002,81.865,81.752,8.67991969]
[1772972198314,11.0,81.821,81.754,8.67991969]
[1772972198915,11.0,81.821,81.756,8.68218221]
[1772972199116,11.001,81.812,81.756,8.68218221]
[1772972200219,10.999,81.825,81.756,8.68218221]
[1772972200616,10.998,81.835,81.769,8.68218221]
[1772972201413,10.998,81.835,81.771,8.69132196]
[1772972202216,10.998,81.835,81.773,8.69132196]
[1772972202417,14.4782153,81.913,81.773,8.69132196]
[1772972202418,10.88841484,81.913,81.773,8.69132196]
[1772972202721,21.974,81.917,81.773,8.69132196]
[1772972202922,21.974,81.917,81.817,8.6809191]
[1772972203119,10.993,81.872,81.817,8.6809191]
[1772972203324,21.974,81.917,81.817,8.6809191]
[1772972204221,10.991,81.887,81.817,8.6809191]
[1772972204424,9.90809151,81.937,81.817,8.6809191]
[1772972204622,10.88841484,81.961,81.817,8.6809191]
[1772972204825,10.88841484,81.96,81.817,8.6809191]
[1772972205226,10.88841484,81.963,81.817,8.6809191]
[1772972205520,21.97,81.931,81.822,8.67380862]
[1772972206626,10.989,81.9,81.845,8.67380862]
[1772972207127,10.988,81.909,81.847,8.6760368]
[1772972207317,21.963,81.959,81.847,8.6760368]
[1772972207821,10.989,81.903,81.847,8.6760368]
[1772972208219,21.963,81.959,81.847,8.6760368]
[1772972209024,21.956,81.984,81.861,8.63779669]
[1772972209328,10.88841484,82.031,81.871,8.63779669]
[1772972209526,10.984,81.941,81.871,8.63779669]
[1772972209729,10.88841484,82.023,81.871,8.63779669]
[1772972209921,10.88841484,82.039,81.871,8.63779669]
[1772972210117,10.88841484,82.039,81.87,62.0]
[1772972210118,10.978,81.985,81.915,8.63779669]
[1772972210321,470.45603714,82.043,81.915,8.63779669]
[1772972210523,10.88841484,82.035,81.871,8.63779669]
[1772972210717,470.45603714,82.043,81.871,8.63779669]
[1772972210718,10.984,81.938,81.871,8.63779669]
[1772972211228,21.947,82.017,81.874,8.61093098]
[1772972211828,21.947,82.017,81.879,8.61093098]
[1772972212332,21.952,81.998,81.879,8.61093098]
[1772972212523,10.985,81.932,81.879,8.61093098]
[1772972214023,21.953,81.996,81.879,8.61093098]
[1772972214330,10.88841484,82.021,81.879,8.61093098]
[1772972214533,10.985,81.929,81.879,8.61093098]
[1772972215026,10.988,81.908,81.859,8.63811596]
[1772972215533,10.88841484,81.987,81.859,8.63811596]
[1772972215733,21.963,81.958,81.859,8.63811596]
[1772972216231,10.986,81.92,81.859,8.63811596]
[1772972216628,21.963,81.958,81.859,8.63811596]
[1772972216826,21.956,81.986,81.859,8.63811596]
[1772972217131,9.86614552,81.985,81.859,8.63811596]
[1772972217433,10.985,81.928,81.859,8.63811596]
[1772972217634,9.86614552,81.998,81.859,8.63811596]
[1772972217834,10.88841484,81.991,81.859,8.63811596]
[1772972218233,21.959,81.973,81.859,8.63811596]
[1772972218830,10.984,81.939,81.861,8.65395878]
[1772972219532,10.985,81.93,81.871,8.65395878]
[1772972220335,10.984,81.941,81.871,8.65395878]
[1772972221336,10.984,81.941,81.872,8.6595315]
[1772972221833,9.88085733,81.998,81.872,8.6595315]
[1772972222535,10.88841484,81.99,81.872,8.6595315]
[1772972222728,10.88841484,81.995,81.872,8.6595315]
[1772972222934,9.88085733,81.998,81.872,8.6595315]
[1772972223637,9.88085733,81.998,81.874,8.66091105]
[1772972224336,9.88085733,81.997,81.874,8.66091105]
[1772972224540,20.76927217,81.996,81.874,8.66091105]
[1772972224734,21.96,81.969,81.874,8.66091105]
[1772972225740,464.1547691,81.999,81.874,8.66091105]
[1772972225939,9.86367254,81.998,81.874,8.66091105]
[1772972226135,21.955,81.99,81.875,8.64859612]
[1772972226440,9.86915288,81.989,81.875,8.64859612]
[1772972226641,9.86915288,81.998,81.875,8.64859612]
[1772972226828,10.985,81.932,81.877,8.67217721]
[1772972227433,10.986,81.921,81.877,8.67217721]
[1772972227838,21.959,81.973,81.877,8.67217721]
[1772972228339,10.983,81.948,81.883,8.67217721]
[1772972228539,9.87538246,81.996,81.883,8.67217721]
[1772972228739,9.87538246,81.995,81.883,8.67217721]
[1772972229041,10.984,81.938,81.883,8.67217721]
[1772972229534,10.985,81.93,81.883,8.67217721]
[1772972231130,21.958,81.979,81.883,8.67217721]
[1772972231531,464.1547691,81.999,81.883,8.67217721]
[1772972231532,21.958,81.978,81.883,8.67217721]
[1772972231736,475.03945324,81.999,81.883,8.67217721]
[1772972231940,9.87843889,81.998,81.883,8.67217721]
[1772972232141,21.958,81.977,81.883,8.67217721]
[1772972232442,21.958,81.977,81.885,8.67501369]
[1772972232836,21.958,81.977,81.889,8.67645288]
[1772972233042,464.1547691,81.999,81.889,8.67645288]
[1772972233434,1.81314326,81.998,81.909,3.77068789]
[1772972234032,1.81314326,81.973,81.909,3.77068789]
[1772972234638,10.984,81.94,81.909,3.77068789]
[1772972234839,10.984,81.94,81.882,3.77068789]
[1772972235039,1.81314326,81.973,81.882,3.77068789]
[1772972235040,1.81057933,81.972,81.882,3.77068789]
[1772972235235,10.986,81.926,81.882,3.77068789]
[1772972237444,1.80094933,81.935,81.862,3.77068789]
[1772972237839,10.989,81.903,81.862,3.77068789]
[1772972238445,10.987,81.913,81.862,3.77068789]
[1772972238851,1.80094933,81.935,81.862,3.77068789]
[1772972239052,10.988,81.905,81.862,3.77068789]
[1772972239550,1.80094933,81.935,81.862,3.77068789]
[1772972239746,10.989,81.903,81.862,3.77068789]
[1772972240352,10.987,81.914,81.862,3.77068789]
[1772972240859,1.80094933,81.935,81.862,3.77068789]
[1772972241153,1.82212119,81.933,81.826,3.77068789]
[1772972241459,1.82212119,81.931,81.826,3.77068789]
[1772972241654,1.82212119,81.929,81.826,3.77068789]
[1772972241860,10.993,81.87,81.826,3.77068789]
[1772972242059,1.82212119,81.89,81.811,3.77068789]
[1772972242659,10.994,81.862,81.811,3.77068789]
[1772972243254,10.993,81.872,81.811,3.77068789]
[1772972243851,10.993,81.872,81.813,3.77068789]
[1772972245456,10.992,81.882,81.815,3.77068789]
[1772972245658,1.70457434,81.908,81.815,3.77068789]
[1772972246057,1.70457434,81.935,81.846,3.77068789]
[1772972247158,10.987,81.912,81.852,3.77068789]
[1772972247462,1.70457434,81.935,81.852,3.77068789]
[1772972247666,9.96716022,81.934,81.852,3.77068789]
[1772972247859,10.987,81.914,81.858,3.77068789]
[1772972249861,10.88468414,81.947,81.858,3.77068789]
[1772972249862,10.989,81.904,81.858,3.77068789]
[1772972250365,1.74112816,81.919,81.858,3.77068789]
[1772972251267,10.987,81.914,81.859,3.77068789]
[1772972252560,10.986,81.924,81.862,3.77068789]
[1772972253353,301.20304259,81.953,81.862,3.77068789]
[1772972253354,10.987,81.914,81.862,3.77068789]
[1772972253863,1.69596985,81.933,81.862,3.77068789]
[1772972254658,10.985,81.932,81.87,10.993]
[1772972254865,1.69596985,81.933,81.871,3.97783705]
[1772972255762,10.986,81.923,81.871,3.97783705]
[1772972255968,1.69596985,81.933,81.854,3.97783705]
[1772972256467,1.69596985,81.933,81.858,3.97783705]
[1772972256864,10.987,81.916,81.861,3.97783705]
[1772972257264,1.69596985,81.933,81.861,3.97783705]
[1772972258168,10.986,81.925,81.863,3.97783705]
[1772972258662,10.985,81.934,81.871,3.97783705]
[1772972259169,10.985,81.934,81.873,3.97783705]
[1772972260464,10.986,81.924,81.873,3.97783705]
[1772972261268,10.985,81.933,81.875,3.97783705]
[1772972261463,1.68371674,81.95,81.875,3.97783705]
[1772972262569,1.68371674,81.95,81.877,3.97783705]
[1772972263470,1.68371674,81.95,81.882,3.97783705]
[1772972263666,1.70040453,81.948,81.864,3.97783705]
[1772972264269,10.986,81.926,81.874,3.97783705]
[1772972264866,1.70040453,81.932,81.881,3.97783705]
[1772972266274,10.985,81.93,81.881,3.97783705]
[1772972267768,10.985,81.93,81.883,10.991]
[1772972267972,1.76391996,81.971,81.884,3.97783705]
[1772972268568,10.982,81.956,81.899,3.97783705]
[1772972268768,1.76391996,81.971,81.899,3.97783705]
[1772972268969,10.979,81.977,81.922,3.97783705]
[1772972269868,1.75740599,81.987,81.922,3.97783705]
[1772972269869,10.978,81.985,81.933,10.985]
[1772972270268,1.75740599,81.987,81.922,3.97783705]
[1772972270473,1.75740599,81.987,81.926,3.97783705]
[1772972270675,1.75740599,82.02,81.926,3.97783705]
[1772972270874,10.976,81.996,81.94,3.97783705]
[1772972271071,1.6139178,81.997,81.94,3.97783705]
[1772972271274,1.6139178,81.997,81.886,3.97783705]
[1772972271476,10.979,81.979,81.93,10.985]
[1772972271972,10.979,81.979,81.919,3.97783705]
[1772972272173,10.98,81.971,81.922,10.986]
[1772972272575,1.6139178,81.997,81.923,3.97783705]
[1772972272972,10.978,81.98,81.924,10.986]
[1772972273576,10.978,81.98,81.925,3.97783705]
[1772972273877,10.98,81.969,81.925,3.97783705]
[1772972274074,1.601029,81.981,81.925,3.97783705]
[1772972274677,1.601029,81.981,81.886,3.97783705]
[1772972275974,10.98,81.969,81.914,3.97783705]
[1772972276574,10.98,81.969,81.919,14.96383705]
[1772972276775,10.979,81.978,81.92,3.97783705]
[1772972276972,1.58947401,81.998,81.92,3.97783705]
[1772972277480,10.977,81.987,81.938,3.97783705]
[1772972278480,10.976,81.995,81.94,3.97783705]
[1772972278781,1.58947401,81.998,81.94,3.97783705]
[1772972278978,10.976,81.996,81.941,10.983]
[1772972279378,10.976,81.996,81.942,3.97783705]
[1772972279379,1.59234266,81.996,81.942,3.97783705]
[1772972280882,10.977,81.989,81.942,3.97783705]
[1772972281078,1.59234266,81.996,81.926,3.97783705]
[1772972281782,10.979,81.974,81.926,3.97783705]
[1772972282880,1.59190682,81.997,81.928,3.89056044]
[1772972283084,475.03473966,82.023,81.928,3.89056044]
[1772972283085,1.59190682,82.02,81.928,3.89056044]
[1772972283280,1.59190682,82.02,81.952,3.89056044]
[1772972283983,10.975,82.009,81.961,14.91536143]
[1772972284683,10.975,82.009,81.961,3.93436143]
[1772972285785,10.973,82.017,81.961,3.93436143]
[1772972286083,1.55069064,82.017,81.961,3.93436143]
[1772972286584,10.974,82.01,81.963,10.981]
[1772972286782,10.974,82.01,81.961,3.93436143]
[1772972287580,1.55069064,82.017,81.962,10.981]
[1772972287785,1.55069064,82.017,81.963,3.93436143]
[1772972288082,1.52933672,82.0,81.944,3.93436143]
[1772972288886,1.47765772,82.022,81.944,3.93436143]
[1772972289585,1.47765772,82.007,81.945,3.93436143]
[1772972290189,10.976,81.994,81.945,3.93436143]
[1772972290488,1.47765772,82.007,81.929,3.93436143]
[1772972291888,1.50544118,81.99,81.937,10.984]
[1772972292088,1.50544118,81.99,81.929,3.93436143]
[1772972292288,10.977,81.989,81.929,3.93436143]
[1772972293391,10.978,81.981,81.931,3.93436143]
[1772972294389,1.45782479,81.989,81.94,10.984]
[1772972294589,1.45782479,81.989,81.931,3.93436143]
[1772972294790,1.45782479,82.009,81.931,3.93436143]
[1772972295181,1.45317866,82.007,81.931,3.93436143]
[1772972295387,475.03473966,82.023,81.94,3.93436143]
[1772972295582,14.4782153,82.038,81.94,3.93436143]
[1772972295583,13.00356006,82.039,81.94,3.93436143]
[1772972296581,13.00356006,82.039,81.975,10.979]
[1772972297294,13.00356006,82.039,81.985,10.978]
[1772972297788,13.00356006,82.039,81.993,10.977]
[1772972299193,13.00356006,82.039,81.941,21.967]
[1772972299787,12.96781981,82.051,81.89,12.2]
[1772972300190,12.96781981,82.042,81.918,12.2]
[1772972300589,12.96781981,82.042,81.987,10.977]
[1772972300788,12.96781981,82.042,81.928,12.2]
[1772972300985,12.95736611,82.06,81.928,12.2]
[1772972301185,12.95736611,82.06,81.997,10.976]
[1772972302396,12.95736611,82.047,81.946,21.966]
[1772972303091,12.95694352,82.045,81.94,62.0]
[1772972303685,12.95694352,82.045,81.993,10.977]
[1772972304093,12.95694352,82.045,81.94,62.0]
[1772972304297,12.95694352,82.045,81.951,21.965]
[1772972305496,12.95552529,82.043,81.987,10.977]
[1772972307594,12.9276938,82.038,81.978,10.978]
[1772972307800,12.9276938,82.038,81.94,62.0]
[1772972307994,12.9276938,82.036,81.866,177.0]
[1772972308193,12.9276938,81.995,81.904,21.977]
[1772972308890,12.9276938,81.992,81.878,12.2]
[1772972309397,12.92787779,82.004,81.906,21.977]
[1772972309794,12.92787779,81.993,81.943,10.983]
[1772972310795,12.92787779,81.993,81.951,10.982]
[1772972311893,12.90248663,82.013,81.92,62.0]
[1772972312491,12.90248663,82.043,81.92,62.0]
[1772972313793,12.90484876,82.035,81.973,10.979]
[1772972315100,12.89411671,82.023,81.964,10.98]
[1772972316589,12.89411671,82.018,81.956,10.982]
[1772972317390,12.89256716,82.011,81.964,10.98]
[1772972317896,12.89256716,82.011,81.93,12.2]
[1772972318101,12.89256716,82.027,81.932,12.2]
[1772972318795,10.971,82.038,81.938,12.2]
[1772972318995,12.88653642,82.037,81.938,12.2]
[1772972319690,12.88653642,82.037,81.994,10.976]
[1772972320897,12.88407405,82.053,82.002,10.975]
[1772972321296,12.88407405,82.069,81.921,12.2]
[1772972321493,12.88407405,82.057,81.968,21.96]
[1772972321996,12.88407405,82.057,82.0,10.976]
[1772972322298,12.88407405,82.057,81.943,21.967]
[1772972322698,12.88407405,82.053,81.992,10.977]
[1772972322897,12.88407405,82.053,81.944,12.2]
[1772972323200,12.88407405,82.053,81.942,320.83465502]
[1772972323392,12.93608228,82.052,81.942,320.83465502]
[1772972324004,12.93608228,82.048,81.942,320.83465502]
[1772972324697,12.93608228,82.022,81.963,10.981]
[1772972325497,12.93608228,82.022,81.942,320.83465502]
[1772972326502,12.93608228,82.022,81.987,10.977]
[1772972326904,12.93608228,82.022,81.942,333.03465502]
[1772972327498,12.93608228,82.022,81.966,10.98]
[1772972328500,12.94006555,82.02,81.958,10.981]
[1772972329710,12.96474526,82.014,81.958,10.981]
[1772972330803,12.96474526,82.014,81.966,10.98]
[1772972331310,12.96474526,82.014,81.942,320.83465502]
[1772972332111,21.934,82.066,81.942,320.83465502]
[1772972332112,12.99412704,82.056,81.942,320.83465502]
[1772972332511,10.97,82.045,81.942,320.83465502]
[1772972332717,12.99412704,82.044,81.952,21.964]
[1772972334707,12.99412704,82.044,81.954,21.964]
[1772972335110,12.99412704,82.044,82.0,10.976]
[1772972336118,12.99412704,82.044,81.955,21.964]
[1772972336417,12.99412704,82.044,81.942,320.83465502]
[1772972337418,12.95390751,82.035,81.979,10.978]
[1772972337813,12.95390751,82.035,81.942,320.83465502]
[1772972338214,12.95390751,82.035,81.986,10.977]
[1772972339014,12.95278024,82.054,81.942,320.83465502]
[1772972339918,12.95278024,82.051,81.942,320.83465502]
[1772972340617,12.95278024,82.039,81.942,320.83465502]
[1772972341819,12.95278024,82.039,82.001,10.975]
[1772972343924,12.95278024,82.039,82.009,10.974]
[1772972344317,12.95278024,82.039,81.962,21.962]
[1772972345316,12.95278024,82.039,81.942,320.83465502]
[1772972345919,12.95278024,82.039,81.949,21.965]
[1772972346319,12.95278024,82.039,81.99,10.977]
[1772972346515,12.93844532,82.069,81.942,320.83465502]
[1772972346819,12.93844532,82.069,82.005,10.975]
[1772972347214,12.93677667,82.059,82.005,10.975]
[1772972347723,12.93677667,82.059,81.942,320.83465502]
[1772972347914,12.93677667,82.059,81.943,37.25576506]
[1772972348112,12.93677667,82.059,81.943,12.2]
[1772972349220,12.93677667,82.059,81.972,21.959]
[1772972349625,12.93677667,82.059,81.943,12.2]
[1772972349826,12.93776253,82.084,81.948,37.25576506]
[1772972350019,12.93776253,82.084,81.953,12.2]
[1772972351426,12.93776253,82.084,82.037,10.971]
[1772972351817,12.93776253,82.084,81.953,12.2]
[1772972352227,12.93776253,82.084,81.993,21.954]
[1772972353627,12.93512594,82.081,81.971,12.2]
[1772972353827,12.93512594,82.081,81.98,62.0]
[1772972354727,10.966,82.075,82.011,10.974]
[1772972355030,12.93512594,82.074,82.011,10.974]
[1772972355831,10.966,82.072,82.011,10.974]
[1772972356130,2.12100065,82.104,82.011,10.974]
[1772972356131,12.96192767,82.071,82.011,10.974]
[1772972357824,12.9696752,82.062,82.011,10.974]
[1772972361035,12.96011686,82.06,81.953,12.19]